Cogmind - Beta 13 @@@ ROGUE MODE // 2024.04.19 @ 07:15:00 Player: Tyrannosaurus Flex Result: Destroyed by RC-W8U(R) with Subdweller Beam Cannon Performance ------------- Evolutions (0) 0 Regions Visited (2) 400 Robots Destroyed (17) 85 Value Destroyed (322) 322 Prototype IDs (0) 0 Alien Tech Used (0) 0 Bonus (0) 0 TOTAL SCORE: 807 Bonus ------- None Cogmind --------- Core Integrity 0/250 Matter 56/300 Energy 106/250 System Corruption 0% Temperature Cool (9) Movement Treading (160) Location -10/Subcaves Parts ------- > --- POWER (1) -------- Ion Engine > --- PROPULSION (2) --- Light Treads Light Treads > --- UTILITY (2) ------ Medium Storage Unit > --- WEAPON (2) ------- Assault Rifle Light Assault Rifle > --- INVENTORY (10) --- Compact Wheel Medium Laser Small Laser Shotgun Shotgun Hammer Peak State ------------ > --- POWER ------------ Ion Engine > --- PROPULSION ------- Aluminum Leg Aluminum Leg > --- UTILITY ---------- Improved Heat Sink Small Storage Unit > --- WEAPON ----------- Shotgun Shotgun > --- INVENTORY -------- Light Ion Engine Light Treads Light Treads Wheel Tractor Beam Shotgun Shotgun Hammer [Rating: 12] Favorites ----------- Power Ion Engine Engine Ion Engine Propulsion Aluminum Leg Treads Light Treads Leg Aluminum Leg Wheel Wheel Flight Unit Flight Unit Utility Small Storage Unit Device Improved Heat Sink Storage Small Storage Unit Processor Signal Interpreter Protection Weapon Shielding Weapon Shotgun Energy Gun Medium Laser Ballistic Gun Shotgun Build | -11 -10 -10 ------- Run | Yrd Mat Sub Slots Evolved . | . . . Power . | . . . Propulsion . | . . . Utility . | . . . Weapon . | . . . Parts Attached 42 | 6 32 4 Power 6 | 1 4 1 Engine 6 | 1 4 1 Core . | . . . Reactor . | . . . Propulsion 12 | 2 8 2 Treads 2 | . . 2 Leg 6 | 2 4 . Wheel 2 | . 2 . Hover . | . . . Flight 2 | . 2 . Utility 12 | 1 11 . Device 2 | . 2 . Storage 6 | 1 5 . Processor 2 | . 2 . Hackware . | . . . Protection 2 | . 2 . Artifact . | . . . Weapon 12 | 2 9 1 Energy Gun 1 | 1 . . Energy Cannon . | . . . Ballistic Gun 11 | 1 9 1 Ballistic Cannon . | . . . Launcher . | . . . Special Weapon . | . . . Impact Weapon . | . . . Slashing Weapon . | . . . Piercing Weapon . | . . . Special Melee Weapon . | . . . Unidentified Prototypes . | . . . Parts Lost 5 | . . 5 Power 1 | . . 1 Propulsion 2 | . . 2 Utility 1 | . . 1 Weapon 1 | . . 1 Highest Loss Streak 5 | . . 5 To Critical Strikes . | . . . Average Slot Usage (%) 93 | . 93 91 Engine 13 | . 14 12 Leg 15 | . 16 . Wheel 6 | . 6 21 Flight 5 | . 5 . Device 6 | . 6 . Storage 11 | . 11 14 Processor 2 | . 2 . Protection 2 | . 2 11 Energy Gun 1 | . 1 . Ballistic Gun 26 | . 26 26 Naked Turns . | . . . Heaviest Build 31 | 14 31 19 Greatest Support 20 | 20 20 20 Greatest Overweight (x) 3 | . 3 . Average Overweight (x) . | . . . Largest Inventory Capacity 15 | 8 15 10 Average Capacity 7 | 6 7 10 Most Carried 10 | 6 10 10 Average Carried 5 | 3 5 9 Final Capacity 10 | 8 10 10 Final Carried 10 | 6 10 6 Class Distribution -------------------- 80% | Mutant 19% | Scavenger-Mutant Dominant Class ---------------- Mutant | -10/Materials Mutant | -10/Subcaves Resources | -11 -10 -10 ----------- Run | Yrd Mat Sub Matter Collected 623 | 204 419 . Remotely . | . . . Salvage Created 414 | . 356 58 Parts 40 | . 36 4 Haulers Intercepted 1 | . 1 . Recyclers Shooed . | . . . Parts Field Recycled . | . . . Retrieved Matter . | . . . Parts Self-Destructed 2 | . . 2 Prevented . | . . . Kills | -11 -10 -10 ------- Run | Yrd Mat Sub Combat Hostiles Destroyed 11 | . 10 1 Guns 11 | . 10 1 Classes Destroyed 7 | . 6 1 Tunneler 1 | . 1 . Hauler 1 | . 1 . Operator 1 | . 1 . Watcher 3 | . 3 . Swarmer 6 | . 6 . Grunt 4 | . 4 . Subdweller 1 | . . 1 Best Kill Streak 4 | . 4 1 Combat Bots Only 4 | . 4 1 Max Kills in Single Turn 2 | . 2 1 Gunslinging 1 | . 1 . Exploded . | . . . Melee . | . . . Uniques/NPCs Destroyed . | . . . Combat | -11 -10 -10 -------- Run | Yrd Mat Sub Hostile Shots Fired 69 | . 43 26 Missed 13 | . 11 2 Damage Taken 950 | . 308 642 Core 251 | . 69 182 Absorbed by Shields . | . . . Redirected to Shielding 51 | . 3 48 Regen/Repaired (Parts) 17 | . 17 . Core Remaining (%) 100 | 100 . . Volleys Fired 48 | . 31 17 Largest 2 | . 2 2 Hottest 46 | . 46 40 Shots Fired 96 | . 62 34 Gun 96 | . 62 34 Cannon . | . . . Launcher . | . . . Special . | . . . Kinetic 96 | . 62 34 Thermal . | . . . Explosive . | . . . Electromagnetic . | . . . Robot Hit Streak 37 | . 7 37 Robot Miss Streak 4 | . 4 . Penetration Max . | . . . Secondary Targets 2 | . 1 1 Max Gunslinging Chain 1 | . 1 1 Shots Hit Robots 77 | . 43 34 Core Hits 29 | . 27 2 Critical Kills . | . . . Critical Parts Destroyed . | . . . Critical Strikes . | . . . Melee Attacks . | . . . Impact . | . . . Slashing . | . . . Piercing . | . . . Sneak Attacks . | . . . Combat Hostiles . | . . . Follow-up Attacks . | . . . Damage Inflicted 696 | . 640 56 Guns 675 | . 619 56 Cannons . | . . . Explosions . | . . . Melee . | . . . Ramming 21 | . 21 . Kinetic 675 | . 619 56 Thermal . | . . . Explosive . | . . . Electromagnetic . | . . . Impact . | . . . Slashing . | . . . Piercing . | . . . Highest Corruption . | . . . Average Corruption . | . . . Corruption Purged . | . . . Corruption Blocked . | . . . Overload Shots . | . . . Overflow Damage . | . . . Projectiles . | . . . Explosions . | . . . Melee . | . . . Knockbacks . | . . . Impact . | . . . Kinetic . | . . . Secondary . | . . . Self-Inflicted Damage 6 | . 6 . Shots . | . . . Rammed 3 | . 3 . Targets Rammed 5 | . 5 . Kicked 2 | . 2 . Crushed . | . . . Highest Temperature 395 | . 22 395 Average Temperature 119 | . 6 212 Received Heat Transfer 887 | . 108 779 Siege Activations . | . . . Robots Corrupted . | . . . Combat Hostiles . | . . . Parts Fried . | . . . Impact Corruptions . | . . . Robots Melted . | . . . Combat Hostiles . | . . . Parts Melted . | . . . Heat Transferred . | . . . Parts Sabotaged . | . . . Parts Stolen . | . . . Parts Stripped . | . . . Power Chain Reactions . | . . . Alert | -11 -10 -10 ------- Run | Yrd Mat Sub Peak Influence 110 | . 110 . Initial . | . . . Average 28 | . 30 . Maximum Alert Level . | . . . Low Security (%) 100 | 100 100 . Level 1 . | . . . Level 2 . | . . . Level 3 . | . . . Level 4 . | . . . Level 5 . | . . . High Security . | . . . Max Security . | . . . Squads Dispatched 2 | . 2 . Investigation 1 | . 1 . Extermination . | . . . Reinforcement 1 | . 1 . Assault . | . . . Garrison . | . . . Intercept . | . . . Searches Triggered . | . . . Construction Impeded . | . . . Haulers Reinforced . | . . . Active Scanning Responses . | . . . Cargo Convoy Interrupts . | . . . Stealth | -11 -10 -10 --------- Run | Yrd Mat Sub Distress Signals 1 | . 1 . Communications Jammed . | . . . Distress Signals . | . . . Times Spotted 25 | . 23 2 Peak Tracking Total 4 | . 4 2 Tactical Retreats . | . . . Traps | -11 -10 -10 ------- Run | Yrd Mat Sub Traps Triggered . | . . . Indirectly . | . . . Trap Hack Attempts . | . . . Triggered . | . . . Disarmed . | . . . Reprogrammed . | . . . Reused . | . . . Traps Extracted . | . . . Installed . | . . . Triggered . | . . . Machines | -11 -10 -10 ---------- Run | Yrd Mat Sub Machines Disabled . | . . . Max in Single Turn . | . . . Machines Repaired . | . . . Machines Dismantled . | . . . Machines Sabotaged . | . . . Overloaded Fab Kills . | . . . Hacking | -11 -10 -10 --------- Run | Yrd Mat Sub Machines Accessed 10 | . 10 . Terminals 7 | . 7 . Fabricators . | . . . Repair Stations 1 | . 1 . Recycling Units 2 | . 2 . Scanalyzers . | . . . Garrison Access . | . . . Total Hacks 35 | . 35 . Successful 20 | . 20 . Failed 15 | . 15 . Catastrophic 1 | . 1 . Database Lockouts . | . . . Manual 28 | . 28 . Terminals 28 | . 28 . Fabricators . | . . . Repair Stations 3 | . 3 . Recycling Units 4 | . 4 . Scanalyzers . | . . . Garrison Access . | . . . Terminal Hacks 7 | . 7 . Record 4 | . 4 . Terminal Index 1 | . 1 . Unreport Threat 1 | . 1 . Hauler Manifests 1 | . 1 . Fabricator Hacks . | . . . Repair Station Hacks 2 | . 2 . Scan Component 1 | . 1 . Repair 1 | . 1 . Recycling Unit Hacks 2 | . 2 . Report Inventory 1 | . 1 . Retrieve Components 1 | . 1 . Scanalyzer . | . . . Garrison Access Hacks . | . . . Unauthorized Hacks 9 | . 9 . Terminals 7 | . 7 . Assimilate 1 | . 1 . Botnet 6 | . 6 . Fabricators . | . . . Repair Stations . | . . . Recycling Units 2 | . 2 . Reject 1 | . 1 . Mask 1 | . 1 . Scanalyzers . | . . . Garrison Access . | . . . Data Cores Recovered . | . . . Used . | . . . Hacking Detections 8 | . 8 . Full Trace Events 4 | . 4 . Feedback Events . | . . . Feedback Blocked . | . . . Robot Schematics Acquired . | . . . Robots Built . | . . . Authchips . | . . . Time . | . . . Total Robot Build Rating . | . . . Part Schematics Acquired . | . . . Parts Built . | . . . Authchips . | . . . Time . | . . . Total Part Build Rating . | . . . Parts Repaired 1 | . 1 . Time 13 | . 13 . Parts Recycled . | . . . Recycled Matter . | . . . Retrieved Matter . | . . . Retrieved Components 1 | . 1 . Parts Scanalyzed . | . . . Part Schematics Acquired . | . . . Parts Damaged . | . . . Bothacking | -11 -10 -10 ------------ Run | Yrd Mat Sub Used RIF Installer . | . . . Robots Hacked . | . . . Non-combat . | . . . Combat . | . . . Robot Hacks Applied . | . . . Relay Couplers Released . | . . . Fabnet Peak Effective % . | . . . Robots Rewired . | . . . Allies Hacked . | . . . Hacks Repelled . | . . . Allies | -11 -10 -10 -------- Run | Yrd Mat Sub Total Allies . | . . . Largest Group . | . . . Highest-Rated Group . | . . . Highest-Rated Ally . | . . . Total Orders . | . . . Ally Attacks . | . . . Total Damage . | . . . Kills . | . . . Allies Corrupted . | . . . Allies Melted . | . . . Intel | -11 -10 -10 ------- Run | Yrd Mat Sub Robot Analysis Total . | . . . Derelict Logs Recovered 1 | . . 1 Drone Launches . | . . . Drone Recoveries . | . . . Exploration | -11 -10 -10 ------------- Run | Yrd Mat Sub Turns Passed 3534 | 127 3310 97 Spaces Moved 2844 | 94 2695 55 Core 19 | 9 10 . Treads . | . . . Legs 1011 | 85 926 . Wheels 735 | . 680 55 Hover . | . . . Flight 1079 | . 1079 . Fastest Speed 37 | 50 37 80 Average Speed 78 | 113 77 80 Slowest Speed 200 | 120 200 80 Overloaded Moves . | . . . Propulsion Burnouts . | . . . Robots Hopped 23 | . 23 . Cave-ins Triggered . | . . . Exploration Rate (%) 37 | 5 100 6 Regions Visited 2 Branch Regions 1 Pre-discovered Areas . | . . . Known Exits Taken 1 | . 1 . Unknown Exits Taken 1 | 1 . . Scrap Searched . | . . . Spaces Dug . | . . . Terrain Destroyed . | . . . Melee . | . . . Projectile . | . . . AOE . | . . . Terrain Rammed . | . . . Walls Destroyed . | . . . Machines Disabled . | . . . Actions | -11 -10 -10 --------- Run | Yrd Mat Sub Total 4058 | 111 3867 80 Wait 1039 | 6 1029 4 Move 2796 | 93 2648 55 Hop 23 | . 23 . Pick Up 39 | 6 33 . Fast Attach 23 | 6 17 . Attach 13 | . 9 4 Detach 19 | . 19 . Swap 6 | . 6 . Drop 47 | . 47 . Fire 48 | . 31 17 Melee . | . . . Ram 3 | . 3 . Kick 2 | . 2 . Crush . | . . . Escape Stasis . | . . . Rewire . | . . . Trap . | . . . Miscellaneous . | . . . Route ------- -11/Scrapyard -10/Materials (discovered 6 exits: *Mat x3 / *Min x2 / *Sub) -10/Subcaves History --------- Turn | Location | Event 4 | -11/Scrapyard | Discovered new exit (range 15) 128 | -11/Scrapyard | Entered Materials 300 | -10/Materials | Build established: Mutant 338 | -10/Materials | Discovered new exit (range 16) 716 | -10/Materials | Discovered new exit (range 16) 2003 | -10/Materials | Discovered new exit (range 14) 2006 | -10/Materials | Discovered new exit (range 11) 2069 | -10/Materials | Identified exit to Mines 2113 | -10/Materials | Identified exit to Subcaves 2133 | -10/Materials | Identified exit to Materials 2198 | -10/Materials | Build established: Scavenger-Mutant 2254 | -10/Materials | Discovered exit to Materials (range 7) 2396 | -10/Materials | Discovered exit to Mines (range 16) 2879 | -10/Materials | Build established: Mutant 3260 | -10/Materials | Repaired Weapon Shielding 3438 | -10/Materials | Entered Subcaves 3494 | -10/Subcaves | Core integrity fell below 50% 3518 | -10/Subcaves | Core integrity fell below 20% 3535 | -10/Subcaves | Destroyed by RC-W8U(R) with Subdweller Beam Cannon Last Messages --------------- 03414_ Slammed into K-01 Serf. 03415_ Acquired 42 matter. LOCATION=SUBCAVES AMBIENT_HEAT=-10 GOAL=ESCAPE 03471_ Acquired derelict log, extracted data. Data stored: Mines entrances (x2). 03492_ NT-O9E(R) destroyed. 03492_ Switching to secondary target: RC-W8U(R). 03494_ Subatomizers dissect the Disposable Heat Sink. 03499_ Lgt. Assault Rifle destroyed. 03503_ Wheel destroyed. 03507_ Subatomizers dissect the Disposable Heat Sink. 03507_ Critical hit (Meltdown: +300). 03515_ Critical hit (Meltdown: +290). 03517_ Wheel destroyed. 03519_ Weapon Shielding destroyed. 03521_ Subatomizers dissect the Disposable Heat Sink. 03523_ Ion Engine destroyed. 03531_ Subatomizers dissect the Disposable Heat Sink. Map ----- +----------------------------------------------------+ | | | | | | | | | ?????????????????????????????????????????????????? | | ?????????????????????????????????????????????????? | | ?????????????????????????????????????????????????? | | ?????????????????????????????????????????????????? | | ?????????????????????????????????????????????????? | | ?????????????????????????????????????????????????? | | ?????????????????????????????????????????????????? | | ?????????????????????????????????????????????????? | | ?????????????????????????????????????????????????? | | ?????????????????????????????????????????????????? | | ?????????????????????????????????????????????????? | | ?????????????????????????????????????????????????? | | ?????????????????????????????????????????????????? | | ?????????????????????????????????????????????????? | | ???????????????????????????####???????????##?????? | | ??????????????????????###### ####???????? ###???? | | ?????????????????????## ##??????# ###?? | | ????????????????????## #???### ##? | | ???????????????????## #????# #? | | ??????????????????## " #??????# #? | | ??????????????????#" """ ####???# #? | | ??????????????????""""""R@ ##### #? | | ???????????????????"""""%!## #? | | ????????????????" " "*!#;## "& #? | | ?????????????????## ?#?# # # ###? | | ??????????????????# ???# #### # " "#?? | | ??????????????????# ???## ##??# #?? | | ??????????????????# ?????###???## &"#?? | | ??????????????????## ###????????# ## #?? | | ???????????????????##???????????# "###?? | | ????????????????????????????????## ### | | ?????????????????????????????????### | | ???????????????????????????????????##### #### # | | ???????????????????????????????????????#####??### | | ???????????????????????????????????????????????## | | ???????????????????????????????????????????????# | | ???????????????????????????????????????????????# | | ???????????????????????????????????????????????# | | ???????????????????????????????????????????????## | | ???????????????????????????????????????????????# | | ???????????????????????????????????????????????# | | ???????????????????????????????????????????????## | | ???????????????????????????????????????????????## | | ???????????????????????????????????????????????# | | ???????????????????????????????????????????????# | | ???????????????????????????????????????????????## | +----------------------------------------------------+ Best States ------------- Heat Dissipation 39 Energy Generation 10 Energy Capacity 250 Matter Stores 286 Matter Capacity 300 Sight Range 16 Robot Scan Range 14 Terrain Scan Density 10 Weapon Shielding 33 Evasion (%) 62 Recoil Reduction 1 Item Schematics ----------------- None Robot Schematics ------------------ None Fabricated ------------ Nothing Alien Tech Used ----------------- None Achievements -------------- None Challenges ------------ None Game ------ Seed DisruptorOpticalWarhead Manual? 0 Play Time 00:51:22 Cumulative 12.8 hours Start 2024.04.19 @ 06:19:59 End 2024.04.19 @ 07:15:00 Sessions 1 Manual Loads 0 Difficulty Rogue Special Mode None Game No. 16 Rogue 16 Adventurer 0 Explorer 0 Win Type - Total 0 Types 0/0/0/0/0/0/0/0/0 Lore% 12 Gallery% 12 Achievement% 12 Wizard Run 0 Options --------- Layout 2 ASCII 0 Keyboard 1 Movement Numpad Keybinds 0 Fullscreen 1 Font 16/SmallcapsGlow Map View 55x47 Zoom Use 0% Tactical HUD 1 Map Filters NONE Filters NONE Steam 1 RUN: 36ab0909-f800-4e4f-88e0-6305bf95aa1e